Workbook

Sheet BUDGETSAMMENDRAG
B2: BUDGETSAMMENDRAG | I2: =YEAR(TODAY()) -> 2019
B3: Firmanavn
B4: Grå celler beregnes for dig og bør normalt ikke ændres.
B5: Oversigt over fortjeneste og tab | C5: Maj, faktisk | D5: Maj, mål | E5: Månedlig afvigelse | F5: ÅTD faktisk | G5: ÅTD mål | H5: ÅTD afvigelse | I5: Noter
B6: Omsætning | C6: kr. 1,200,000.00 | D6: kr. 1,100,000.00 | E6: =C6-D6 -> kr. 100,000.00 | F6: kr. 6,200,000.00 | G6: kr. 6,000,000.00 | H6: =F6-G6 -> kr. 200,000.00 | I6: Vi har overskredet vores mål for omsætning i maj med 9 % på grund af stærkere effektuering i region Vest.
B7: Bruttoavance | C7: kr. 150,000.00 | D7: kr. 160,000.00 | E7: =C7-D7 -> kr. -10,000.00 | F7: kr. 640,000.00 | G7: kr. 750,000.00 | H7: =F7-G7 -> kr. -110,000.00
B8: Bruttoavanceprocent | C8: =IF(C6=0,0,C7/C6) -> 12.5% | D8: =IF(D6=0,0,D7/D6) -> 14.5% | E8: =C8-D8 -> -2.0% | F8: =IF(F6=0,0,F7/F6) -> 10.3% | G8: =IF(G6=0,0,G7/G6) -> 12.5% | H8: =F8-G8 -> -2.2%
B9: Salg af nye produkter | C9: kr. 200,000.00 | D9: kr. 150,000.00 | E9: =C9-D9 -> kr. 50,000.00 | F9: kr. 900,000.00 | G9: kr. 750,000.00 | H9: =F9-G9 -> kr. 150,000.00
B10: Opdeling af salg efter område:
B11: Nordøstlige region | C11: kr. 400,000.00 | D11: kr. 400,000.00 | E11: =C11-D11 -> kr. 0.00 | F11: kr. 2,200,000.00 | G11: kr. 2,000,000.00 | H11: =F11-G11 -> kr. 200,000.00
B12: Centrale region | C12: kr. 400,000.00 | D12: kr. 400,000.00 | E12: =C12-D12 -> kr. 0.00 | F12: kr. 2,400,000.00 | G12: kr. 2,000,000.00 | H12: =F12-G12 -> kr. 400,000.00
B13: Vestlige region | C13: kr. 400,000.00 | D13: kr. 300,000.00 | E13: =C13-D13 -> kr. 100,000.00 | F13: kr. 1,600,000.00 | G13: kr. 2,000,000.00 | H13: =F13-G13 -> kr. -400,000.00
B14: Udgifter og margin:
B15: Driftsudgifter | C15: kr. 100,000.00 | D15: kr. 120,000.00 | E15: =D15-C15 -> kr. 20,000.00 | F15: kr. 500,000.00 | G15: kr. 600,000.00 | H15: =G15-F15 -> kr. 100,000.00
B16: Driftsoverskud eller -tab før skat | C16: kr. 50,000.00 | D16: kr. 40,000.00 | E16: =C16-D16 -> kr. 10,000.00 | F16: kr. 140,000.00 | G16: kr. 150,000.00 | H16: =F16-G16 -> kr. -10,000.00
B17: Driftsmargin | C17: =IF(C6=0,0,C16/C6) -> 4% | D17: =IF(D6=0,0,D16/D6) -> 4% | E17: =C17-D17 -> 1% | F17: =IF(F6=0,0,F16/F6) -> 2% | G17: =IF(G6=0,0,G16/G6) -> 3% | H17: =F17-G17 -> -0%
B19: Oversigt over balance | C19: Maj, faktisk | D19: Maj, mål | E19: Månedlig afvigelse | F19: ÅTD faktisk | G19: ÅTD mål | H19: ÅTD afvigelse | I19: Noter
B20: Cashflow ultimo | C20: kr. 35,000.00 | D20: kr. 50,000.00 | E20: =C20-D20 -> kr. -15,000.00 | F20: kr. 35,000.00 | G20: kr. 50,000.00 | H20: =F20-G20 -> kr. -15,000.00 | I20: Differencerne i cashflowet skyldtes kontant afregning af et forlig i en juridisk tvist med firmanavn d. 8. maj.
B21: Debitorer | C21: kr. 20,000.00 | D21: kr. 22,000.00 | E21: kr. -2,000.00 | F21: kr. 20,000.00 | G21: kr. 22,000.00 | H21: kr. -2,000.00
B22: Lager | C22: kr. 25,000.00 | D22: kr. 30,000.00 | E22: kr. -5,000.00 | F22: kr. 25,000.00 | G22: kr. 30,000.00 | H22: kr. -5,000.00
B23: Likvide midler i alt | C23: kr. 75,000.00 | D23: kr. 90,000.00 | E23: kr. -15,000.00 | F23: kr. 75,000.00 | G23: kr. 90,000.00 | H23: kr. -15,000.00
B24: Aktiver, der kræves af gældsklausuler | C24: kr. 25,000.00 | D24: kr. 25,000.00 | E24: kr. 0.00 | F24: kr. 25,000.00 | G24: kr. 25,000.00 | H24: kr. 0.00
B25: Buffer for gældsklausuler | C25: =C23-C24 -> kr. 50,000.00 | D25: =D23-D24 -> kr. 65,000.00 | E25: kr. -15,000.00 | F25: =F23-F24 -> kr. 50,000.00 | G25: =G23-G24 -> kr. 65,000.00 | H25: kr. -15,000.00
B26: Andre poster på balancen:
B27: Ejendom, anlæg og udstyr | C27: kr. 80,000.00 | D27: kr. 78,000.00 | E27: =C27-D27 -> kr. 2,000.00 | F27: kr. 80,000.00 | G27: kr. 78,000.00 | H27: =F27-G27 -> kr. 2,000.00 | I27: Difference på grund af køb af ny køb af ny maskine produktionsanlæg B.
B28: Kreditorer | C28: kr. 60,000.00 | D28: kr. 60,000.00 | E28: =D28-C28 -> kr. 0.00 | F28: kr. 60,000.00 | G28: kr. 60,000.00 | H28: =F28-G28 -> kr. 0.00
B29: Langfristet gæld | C29: kr. 30,000.00 | D29: kr. 31,000.00 | E29: =D29-C29 -> kr. 1,000.00 | F29: kr. 30,000.00 | G29: kr. 31,000.00 | H29: =G29-F29 -> kr. 1,000.00
B30: Egenkapital | C30: kr. 300,000.00 | D30: kr. 297,500.00 | E30: =C30-D30 -> kr. 2,500.00 | F30: kr. 300,000.00 | G30: kr. 297,500.00 | H30: =F30-G30 -> kr. 2,500.00
B32: Oversigt over driftsmålepunkter | C32: Maj, faktisk | D32: Maj, mål | E32: Månedlig afvigelse | F32: ÅTD faktisk | G32: ÅTD mål | H32: ÅTD afvigelse | I32: Noter
B33: Antal defekter pr. 1.000 widgets produceret | C33: 2.3 | D33: 1.0 | E33: =D33-C33 -> -1.3 | F33: 1.5 | G33: 1.0 | H33: =F33-G33 -> 0.5 | I33: Kvalitetsproblemer skyldtes en forkert maling, som var blevet anvendt i produktionslinje 3. Lederen har implementeret nye kontrolforanstaltninger.
B34: Produktionskapacitet – enheder pr. måned | C34: 200,000 | D34: 220,000 | E34: =C34-D34 -> -20,000 | F34: 1,100,000 | G34: 1,150,000 | H34: =F34-G34 -> -50,000
B35: Betalingsfrist i dage | C35: 35 | D35: 25 | E35: =D35-C35 -> -10 | F35: 33 | G35: 25 | H35: =G35-F35 -> -8
B36: Antal nye ordrer | C36: 19 | D36: 15 | E36: =C36-D36 -> 4 | F36: 83 | G36: 75 | H36: =F36-G36 -> 8
B38: Konkurrenceoversigt | C38: Din firmaprofil | D38: Konkurrent 1 | E38: Konkurrent 2 | F38: Konkurrent 3 | G38: Konkurrent 4 | H38: Andet | I38: Noter
B39: Markedsandel | C39: 20.00% | D39: 25.00% | E39: 15.00% | F39: 5.00% | G39: 15.00% | H39: 20.00% | I39: Markedsandel øget på grund af styrket salg af nyde produkter.
B40: Omsætning (ÅTD) | C40: =F6 -> kr. 6,200,000.00 | D40: kr. 7,000,000.00 | E40: kr. 4,000,000.00 | F40: kr. 1,500,000.00 | G40: kr. 4,000,000.00 | H40: kr. 6,000,000.00
B41: Nye produktlanceringer (ÅTD) | C41: kr. 900,000.00 | D41: kr. 500,000.00 | E41: kr. 0.00 | F41: kr. 100,000.00 | G41: kr. 500,000.00 | H41: kr. 0.00
B42: Antal sælgere i felten (anslået) | C42: 15 | D42: 20 | E42: 15 | F42: 10 | G42: 15 | H42: I/T

Sheet DIAGRAM OVER INDTÆGTER OG TAB
B2: OVERSIGTSDIAGRAM OVER FORTJENESTE OG TAB | I2: =BUDGETSAMMENDRAG!I2 -> 2019
B3: =BUDGETSAMMENDRAG!B3 -> Firmanavn
B5: Liggende søjlediagram, der viser de faktiske værdier og målene for måned og år, er i denne celle.

Sheet DIAGRAM OVER SALDO
B2: OVERSIGTSDIAGRAM OVER BALANCE | I2: =BUDGETSAMMENDRAG!I2 -> 2019
B3: =BUDGETSAMMENDRAG!B3 -> Firmanavn
B5: Liggende søjlediagram, der viser de månedlige faktiske værdier og målværdier, er i denne celle.
